fUSD/lending_fUSD_20251223
["ID","MTS","AMOUNT","RATE_DAILY","PERIOD"]
[399560542,1766487451454,-500.0,0.00045205,120]
[399560543,1766487451495,-500.0,0.00045205,120]
[399560544,1766487451536,-1388.3,0.00045205,120]
[399560545,1766487451576,-500.0,0.00045205,120]
[399560546,1766487451618,-500.0,0.00045205,120]
[399560547,1766487451665,-500.0,0.00045205,120]
[399560548,1766487451707,-500.0,0.00045205,120]
[399560549,1766487451751,-689.37,0.00045205,120]
[399560550,1766487451793,-1432.96,0.00045205,120]
[399560551,1766487451833,-1562.05,0.00045205,120]
[399560552,1766487451873,-500.0,0.00045205,120]
[399560553,1766487451914,-1196.29,0.00045205,120]
[399560554,1766487451955,-500.0,0.00045205,120]
[399560555,1766487451996,-1708.74,0.00045205,120]
[399560556,1766487452275,-500.0,0.00045205,120]
[399560557,1766487452323,-1298.55,0.00045205,120]
[399560558,1766487452370,-500.0,0.00045205,120]
[399560559,1766487452414,-1689.23,0.00045205,120]
[399560560,1766487452456,-612.72442197,0.00045205,120]
[399560561,1766487452499,-500.0,0.00045205,120]
[399560562,1766487452539,-1005.64,0.00045205,120]
[399560563,1766487452581,-500.0,0.00045205,60]
[399560564,1766487452622,-500.0,0.00045205,90]
[399560565,1766487452664,-10397.11,0.00045205,120]
[399560566,1766487452704,-765.9,0.00045205,120]
[399560567,1766487452744,-500.0,0.00045205,120]
[399560568,1766487452784,-500.0,0.00045205,120]
[399560569,1766487452824,-500.0,0.00045205,120]
[399560570,1766487452863,-1437.927834,0.00045205,120]
[399560571,1766487452902,-209.786308,0.00045205,120]
[399560572,1766487452941,-259.391101,0.00045205,120]
[399560573,1766487452980,-213.82803,0.00045205,120]
[399560574,1766487453019,-787.237658,0.00045205,120]
[399560575,1766487453059,-1663.38442,0.00045205,120]
[399560576,1766487453104,-393.61883,0.00045205,120]
[399560577,1766487453147,-600.0,0.0004529,90]
[399560578,1766487453191,-201.93286098,0.0004529,90]
[399560579,1766487453236,-1000.0,0.0004529,90]
[399560580,1766487453283,-1500.0,0.0004529,90]
[399560581,1766487453329,-500.0,0.0004529,90]
[399560582,1766487453374,-500.0,0.0004529,90]
[399560583,1766487453419,-151.0,0.0004529,90]
[399560584,1766487453463,-201.93286098,0.0004529,90]
[399560585,1766487453506,-695.39793186,0.0004529,90]
[399560586,1766487453548,-160.57007686,0.0004529,90]
[399560587,1766487453590,-252.69785878,0.0004529,90]
[399560588,1766487453633,-151.0,0.0004529,90]
[399560589,1766487453680,-500.0,0.0004529,90]
[399560590,1766487453727,-500.0,0.0004529,90]
[399560591,1766487453776,-500.0,0.0004529,90]
[399560592,1766487453823,-151.0,0.0004529,90]
[399560593,1766487453870,-553.64373807,0.0004529,90]
[399560594,1766487453918,-186.66093114,0.0004529,90]
[399560595,1766487453966,-260.99352058,0.0004529,90]
[399560596,1766487454014,-250.0,0.0004529,90]
[399560597,1766487454063,-250.0,0.0004529,90]
[399560598,1766487454118,-668.65185757,0.0004529,90]
[399560599,1766487454168,-506.70820772,0.0004529,90]
[399560600,1766487454218,-250.0,0.0004529,90]
[399560601,1766487454268,-157.0,0.000454,120]
[399560602,1766487454317,-917.06,0.00045479,120]
[399560603,1766487454366,-500.0,0.00045479,120]
[399560604,1766487454414,-500.0,0.00045479,120]
[399560605,1766487454462,-500.0,0.00045479,120]
[399560606,1766487454508,-500.0,0.00045479,120]
[399560607,1766487454556,-271.37466441,0.00045479,120]
[399560608,1766487454602,-500.0,0.00045479,120]
[399560609,1766487454647,-334.81109481,0.00045479,120]
[399560610,1766487454691,-500.0,0.00045479,120]
[399560611,1766487454736,-500.0,0.00045479,120]
[399560612,1766487454780,-500.0,0.00045479,120]
[399560613,1766487454824,-500.0,0.00045479,120]
[399560614,1766487454867,-500.0,0.00045479,120]
[399560615,1766487454910,-1369.07,0.00045479,120]
[399560616,1766487454953,-515.53504245,0.00045479,120]
[399560617,1766487454996,-335.00540369,0.00045479,120]
[399560618,1766487455039,-500.0,0.00045479,120]
[399560619,1766487455084,-500.0,0.00045479,120]
[399560620,1766487455126,-756.38,0.00045479,120]
[399560621,1766487455170,-248.81537551,0.00045479,120]
[399560622,1766487455214,-500.0,0.00045479,120]
[399560623,1766487455257,-500.0,0.00045479,120]
[399560624,1766487455301,-574.20827002,0.00045479,120]
[399560625,1766487455344,-500.0,0.00045479,120]
[399560626,1766487455389,-500.0,0.00045479,120]
[399560627,1766487455437,-500.0,0.00045479,120]
[399560628,1766487455485,-500.0,0.00045479,120]
[399560629,1766487455531,-500.0,0.00045479,120]
[399560630,1766487455578,-500.0,0.00045479,120]
[399560631,1766487455623,-500.0,0.00045479,120]
[399560632,1766487455667,-500.0,0.00045479,120]
[399560633,1766487455708,-500.0,0.00045479,120]
[399560634,1766487455750,-500.0,0.00045479,120]
[399560635,1766487455792,-500.0,0.00045479,120]
[399560636,1766487455833,-562.96280444,0.00045479,120]
[399560637,1766487455874,-500.0,0.00045479,120]
[399560638,1766487455915,-500.0,0.00045479,120]
[399560639,1766487455957,-500.0,0.00045479,120]
[399560640,1766487456000,-500.0,0.00045479,120]
[399560641,1766487456042,-500.0,0.00045479,120]
[399560642,1766487456084,-418.9481383,0.00045479,120]
[399560643,1766487456127,-500.0,0.00045479,120]
[399560644,1766487456169,-641.56176992,0.00045479,120]
[399560645,1766487456215,-231.30342819,0.00045479,120]
[399560646,1766487456261,-500.0,0.00045479,120]
[399560647,1766487456307,-500.0,0.00045479,120]
[399560648,1766487456351,-500.0,0.00045479,120]
[399560649,1766487456395,-500.0,0.00045479,120]
[399560650,1766487456439,-500.0,0.00045479,120]
[399560651,1766487456734,-500.0,0.00045479,120]
[399560652,1766487456782,-500.0,0.00045479,120]
[399560653,1766487456826,-500.0,0.00045479,120]
[399560654,1766487456870,-1039.08,0.00045479,120]
[399560655,1766487456912,-326.27741285,0.00045479,120]
[399560656,1766487456954,-2118.86,0.00045479,120]
[399560657,1766487456996,-2017.38,0.00045479,120]
[399560658,1766487457038,-500.0,0.00045479,120]
[399560659,1766487457082,-390.90669168,0.00045479,120]
[399560660,1766487457124,-500.0,0.00045479,120]
[399560661,1766487457166,-500.0,0.00045479,120]
[399560662,1766487457211,-500.0,0.00045479,120]
[399560663,1766487457257,-328.65400525,0.00045479,120]
[399560664,1766487457304,-389.3060462,0.00045479,120]
[399560665,1766487457357,-1042.93,0.00045479,120]
[399560666,1766487457405,-500.0,0.00045479,120]
[399560667,1766487457450,-500.0,0.00045479,120]
[399560668,1766487457494,-425.18125679,0.00045479,120]
[399560669,1766487457539,-500.0,0.00045479,120]
[399560670,1766487457582,-500.0,0.00045479,120]
[399560671,1766487457625,-500.0,0.00045479,120]
[399560672,1766487457667,-500.0,0.00045479,120]
[399560673,1766487457709,-500.0,0.00045479,120]
[399560674,1766487457750,-462.91178022,0.00045479,120]
[399560675,1766487457790,-500.0,0.00045479,120]
[399560676,1766487457832,-500.0,0.00045479,120]
[399560677,1766487457872,-647.47332312,0.00045479,120]
[399560678,1766487457912,-501.13121366,0.00045479,120]
[399560679,1766487457952,-500.0,0.00045479,120]
[399560680,1766487457997,-500.0,0.00045479,120]
[399560681,1766487458040,-500.0,0.00045479,120]
[399560682,1766487458085,-500.0,0.00045479,120]
[399560683,1766487458131,-500.0,0.00045479,120]
[399560684,1766487458177,-524.41011853,0.00045479,120]
[399560685,1766487458224,-500.0,0.00045479,120]
[399560686,1766487458272,-500.0,0.00045479,120]
[399560687,1766487458318,-425.06130457,0.00045479,120]
[399560688,1766487458363,-500.0,0.00045479,120]
[399560689,1766487458407,-500.0,0.00045479,120]
[399560690,1766487458454,-500.0,0.00045479,120]
[399560691,1766487458500,-500.0,0.00045479,120]
[399560692,1766487458546,-500.0,0.00045479,120]
[399560693,1766487458592,-246.80252787,0.00045479,120]
[399560694,1766487458638,-500.0,0.00045479,120]
[399560695,1766487458687,-500.0,0.00045479,120]
[399560696,1766487458734,-500.0,0.00045479,120]
[399560697,1766487458781,-426.17514943,0.00045479,120]
[399560698,1766487458827,-500.0,0.00045479,120]
[399560699,1766487458872,-1059.91,0.00045479,120]
[399560700,1766487458920,-582.18,0.00045479,120]
[399560701,1766487458966,-500.0,0.00045479,120]
[399560702,1766487459012,-500.0,0.00045479,120]
[399560703,1766487459059,-514.4,0.00045479,120]
[399560704,1766487459110,-500.0,0.00045479,120]
[399560705,1766487459158,-500.0,0.00045479,120]
[399560706,1766487459204,-500.0,0.00045479,120]
[399560707,1766487459252,-500.0,0.00045479,120]
[399560708,1766487459299,-500.0,0.00045479,120]
[399560709,1766487459344,-500.0,0.00045479,120]
[399560710,1766487459389,-638.79891367,0.00045479,120]
[399560711,1766487459437,-500.0,0.00045479,120]
[399560712,1766487459481,-500.0,0.00045479,120]
[399560713,1766487459525,-500.0,0.00045479,120]
[399560714,1766487459569,-500.0,0.00045479,120]
[399560715,1766487459611,-500.0,0.00045479,120]
[399560716,1766487459652,-500.0,0.00045479,120]
[399560717,1766487459692,-500.0,0.00045479,120]
[399560718,1766487459733,-500.0,0.00045479,120]
[399560719,1766487459777,-500.0,0.00045479,120]
[399560720,1766487459818,-500.0,0.00045479,120]
[399560721,1766487459858,-500.0,0.00045479,120]
[399560722,1766487459897,-500.0,0.00045479,120]
[399560723,1766487459939,-500.0,0.00045479,120]
[399560724,1766487459979,-500.0,0.00045479,120]
[399560725,1766487460020,-500.0,0.00045479,120]
[399560726,1766487460061,-500.0,0.00045479,120]
[399560727,1766487460104,-500.0,0.00045479,120]
[399560728,1766487460148,-500.0,0.00045479,120]
[399560729,1766487460193,-500.0,0.00045479,120]
[399560730,1766487460237,-500.0,0.00045479,120]
[399560731,1766487460282,-500.0,0.00045479,120]
[399560732,1766487460325,-490.24832267,0.00045479,120]
[399560733,1766487460368,-500.0,0.00045479,120]
[399560734,1766487460411,-500.0,0.00045479,120]
[399560735,1766487460456,-500.0,0.00045479,120]
[399560736,1766487460500,-500.0,0.00045479,120]
[399560737,1766487460559,-500.0,0.00045479,120]
[399560738,1766487460605,-500.0,0.00045479,120]
[399560739,1766487460646,-500.0,0.00045479,120]
[399560740,1766487460687,-500.0,0.00045479,120]
[399560741,1766487460728,-500.0,0.00045479,120]
[399560742,1766487460770,-1956.07,0.00045479,120]
[399560743,1766487460811,-312.58783932,0.00045479,120]
[399560744,1766487460852,-1842.03,0.00045479,120]
[399560745,1766487460893,-481.77271099,0.00045479,120]
[399560746,1766487461326,-365.62384117,0.00045479,120]
[399560747,1766487461373,-500.0,0.00045479,120]
[399560748,1766487461420,-2752.43,0.00045479,120]
[399560749,1766487461467,-500.0,0.00045479,120]
[399560750,1766487461512,-500.0,0.00045479,120]
[399560751,1766487461555,-500.0,0.00045479,120]
[399560752,1766487461597,-500.0,0.00045479,120]
[399560753,1766487461638,-500.0,0.00045479,120]
[399560754,1766487461678,-500.0,0.00045479,120]
[399560755,1766487461720,-500.0,0.00045479,120]
[399560756,1766487461763,-500.0,0.00045479,120]
[399560757,1766487461805,-500.0,0.00045479,120]
[399560758,1766487461847,-500.0,0.00045479,120]
[399560759,1766487461890,-500.0,0.00045479,120]
[399560760,1766487461931,-586.34,0.00045479,120]
[399560761,1766487461971,-500.0,0.00045479,120]
[399560762,1766487462012,-500.0,0.00045479,120]
[399560763,1766487462051,-500.0,0.00045479,120]
[399560764,1766487462090,-500.0,0.00045479,120]
[399560765,1766487462129,-500.0,0.00045479,120]
[399560766,1766487462170,-648.95562955,0.00045479,120]
[399560767,1766487462214,-500.0,0.00045479,120]
[399560768,1766487462260,-500.0,0.00045479,120]
[399560769,1766487462305,-500.0,0.00045479,120]
[399560770,1766487462349,-697.63,0.00045479,120]
[399560771,1766487462394,-500.0,0.00045479,120]
[399560772,1766487462437,-349.52912843,0.00045479,120]
[399560773,1766487462482,-500.0,0.00045479,60]
[399560774,1766487462526,-500.0,0.00045479,120]
[399560775,1766487462568,-500.0,0.00045479,120]
[399560776,1766487462607,-500.0,0.00045479,120]
[399560777,1766487462645,-500.0,0.00045479,120]
[399560778,1766487462684,-374.5153654,0.00045479,120]
[399560779,1766487462722,-982.85,0.00045479,120]
[399560780,1766487462760,-500.0,0.00045479,120]
[399560781,1766487462798,-500.0,0.00045479,120]
[399560782,1766487462836,-500.0,0.00045479,120]
[399560783,1766487462876,-500.0,0.00045479,120]
[399560784,1766487462915,-500.0,0.00045479,120]
[399560785,1766487462954,-500.0,0.00045479,120]
[399560786,1766487462993,-500.0,0.00045479,120]
[399560787,1766487463034,-500.0,0.00045479,120]
[399560788,1766487463074,-500.0,0.00045479,120]
[399560789,1766487463118,-500.0,0.00045479,120]
[399560790,1766487463159,-500.0,0.00045479,120]
[399560791,1766487463203,-500.0,0.00045479,120]
[399560792,1766487463248,-500.0,0.00045479,120]
[399560793,1766487463292,-715.76,0.00045479,120]
[399560794,1766487463335,-382.43761073,0.00045479,120]
[399560795,1766487463377,-576.94800219,0.00045479,120]
[399560796,1766487463420,-500.0,0.00045479,120]
[399560797,1766487463462,-535.90729953,0.00045479,120]
[399560798,1766487463501,-500.0,0.00045479,120]
[399560799,1766487463540,-500.0,0.00045479,120]
[399560800,1766487463578,-500.0,0.00045479,120]
[399560801,1766487463617,-241.52022949,0.00045479,120]
[399560802,1766487463658,-500.0,0.00045479,120]
[399560803,1766487463697,-500.0,0.00045479,120]
[399560804,1766487463736,-500.0,0.00045479,120]
[399560805,1766487463775,-500.0,0.00045479,120]
[399560806,1766487463813,-500.0,0.00045479,120]
[399560807,1766487463852,-500.0,0.00045479,120]
[399560808,1766487463889,-500.0,0.00045479,120]
[399560809,1766487463928,-500.0,0.00045479,120]
[399560810,1766487463966,-500.0,0.00045479,120]
[399560811,1766487464007,-500.0,0.00045479,120]
[399560812,1766487464047,-500.0,0.00045479,120]
[399560813,1766487464088,-500.0,0.00045479,120]
[399560814,1766487464129,-500.0,0.00045479,120]
[399560815,1766487464170,-500.0,0.00045479,120]
[399560816,1766487464214,-500.0,0.00045479,120]
[399560817,1766487464259,-500.0,0.00045479,120]
[399560818,1766487464303,-1723.75,0.00045479,120]
[399560819,1766487464346,-500.0,0.00045479,120]
[399560820,1766487464389,-500.0,0.00045479,120]
[399560821,1766487464432,-500.0,0.00045479,120]
[399560822,1766487464474,-524.92,0.00045479,120]
[399560823,1766487464515,-500.0,0.00045479,120]
[399560824,1766487464555,-906.89,0.00045479,60]
[399560825,1766487464593,-545.88,0.00045479,120]
[399560826,1766487464632,-500.0,0.00045479,120]
[399560827,1766487464671,-367.03389975,0.00045479,120]
[399560828,1766487464710,-500.0,0.00045479,120]
[399560829,1766487464748,-500.0,0.00045479,120]
[399560830,1766487464786,-500.0,0.00045479,120]
[399560831,1766487464825,-1273.67,0.00045479,120]
[399560832,1766487464867,-500.0,0.00045479,120]
[399560833,1766487464906,-500.0,0.00045479,120]
[399560834,1766487464947,-500.0,0.00045479,120]
[399560835,1766487464986,-500.0,0.00045479,120]
[399560836,1766487465026,-541.9302488,0.00045479,120]
[399560837,1766487465067,-500.0,0.00045479,120]
[399560838,1766487465112,-500.0,0.00045479,120]
[399560839,1766487465154,-526.39824503,0.00045479,120]
[399560840,1766487465198,-616.17,0.00045479,120]
[399560841,1766487465435,-500.0,0.00045479,120]
[399560842,1766487465481,-779.23,0.00045479,120]
[399560843,1766487465524,-760.79,0.00045479,120]
[399560844,1766487465567,-500.0,0.00045479,120]
[399560845,1766487465607,-500.0,0.00045479,120]
[399560846,1766487465648,-500.0,0.00045479,120]
[399560847,1766487465688,-500.0,0.00045479,120]
[399560848,1766487465729,-520.46495685,0.00045479,120]
[399560849,1766487465769,-1543.48,0.00045479,120]
[399560850,1766487465808,-680.4,0.00045479,120]
[399560851,1766487465849,-519.33681124,0.00045479,120]
[399560852,1766487465889,-500.0,0.00045479,120]
[399560853,1766487465930,-500.0,0.00045479,120]
[399560854,1766487465971,-1112.14,0.00045479,120]
[399560855,1766487466013,-500.0,0.00045479,120]
[399560856,1766487466055,-705.5,0.00045479,120]
[399560857,1766487466099,-500.0,0.00045479,120]
[399560858,1766487466142,-550.35843749,0.00045479,120]
[399560859,1766487466190,-1242.77,0.00045479,120]
[399560860,1766487466239,-500.0,0.00045479,120]
[399560861,1766487466287,-500.0,0.00045479,120]
[399560862,1766487466333,-500.0,0.00045479,120]
[399560863,1766487466379,-500.0,0.00045479,120]
[399560864,1766487466422,-500.0,0.00045479,120]
[399560865,1766487466465,-500.0,0.00045479,120]
[399560866,1766487466509,-500.0,0.00045479,120]
[399560867,1766487466552,-500.0,0.00045479,120]
[399560868,1766487466595,-636.03,0.00045479,120]
[399560869,1766487466641,-500.0,0.00045479,120]
[399560870,1766487466684,-1402.13,0.00045479,120]
[399560871,1766487466728,-1997.32,0.00045479,120]
[399560872,1766487466772,-500.0,0.00045479,120]
[399560873,1766487466815,-500.0,0.00045479,120]
[399560874,1766487466857,-500.0,0.00045479,120]
[399560875,1766487466899,-1364.75,0.00045479,60]
[399560876,1766487466941,-500.0,0.00045479,120]
[399560877,1766487466984,-766.62,0.00045479,120]
[399560878,1766487467029,-500.0,0.00045479,120]
[399560879,1766487467074,-500.0,0.00045479,120]
[399560880,1766487467121,-839.95,0.00045479,120]
[399560881,1766487467165,-500.0,0.00045479,120]
[399560882,1766487467213,-522.41,0.00045479,120]
[399560883,1766487467259,-500.0,0.00045479,120]
[399560884,1766487467304,-500.0,0.00045479,120]
[399560885,1766487467348,-500.0,0.00045479,120]
[399560886,1766487467401,-500.0,0.00045479,120]
[399560887,1766487467456,-500.0,0.00045479,120]
[399560888,1766487467508,-500.0,0.00045479,120]
[399560889,1766487467554,-500.0,0.00045479,120]
[399560890,1766487467596,-642.74,0.00045479,120]
[399560891,1766487467637,-500.0,0.00045479,120]
[399560892,1766487467677,-500.0,0.00045479,120]
[399560893,1766487467718,-500.0,0.00045479,120]
[399560894,1766487467760,-500.0,0.00045479,120]
[399560895,1766487467800,-500.0,0.00045479,120]
[399560896,1766487467841,-500.0,0.00045479,120]
[399560897,1766487467881,-500.0,0.00045479,120]
[399560898,1766487467921,-500.0,0.00045479,120]
[399560899,1766487467961,-500.0,0.00045479,120]
[399560900,1766487468000,-500.0,0.00045479,120]
[399560901,1766487468042,-242.6131845,0.00045479,120]
[399560902,1766487468088,-1016.98,0.00045479,120]
[399560903,1766487468132,-516.48425938,0.00045479,120]
[399560904,1766487468175,-500.0,0.00045479,120]
[399560905,1766487468221,-566.15,0.00045479,120]
[399560906,1766487468267,-500.0,0.00045479,120]
[399560907,1766487468312,-500.0,0.00045479,120]
[399560908,1766487468354,-500.0,0.00045479,120]
[399560909,1766487468396,-567.85,0.00045479,120]
[399560910,1766487468442,-500.0,0.00045479,120]
[399560911,1766487468483,-500.0,0.00045479,120]
[399560912,1766487468520,-500.0,0.00045479,120]
[399560913,1766487468559,-500.0,0.00045479,120]
[399560914,1766487468596,-500.0,0.00045479,120]
[399560915,1766487468634,-500.0,0.00045479,120]
[399560916,1766487468672,-500.0,0.00045479,120]
[399560917,1766487468712,-1210.55,0.00045479,120]
[399560918,1766487468751,-1710.74,0.00045479,120]
[399560919,1766487468791,-500.0,0.00045479,120]
[399560920,1766487468829,-1312.95,0.00045479,120]
[399560921,1766487468868,-1224.52,0.00045479,120]
[399560922,1766487468906,-1696.75,0.00045479,120]
[399560923,1766487468946,-500.0,0.00045479,120]
[399560924,1766487468985,-500.0,0.00045479,120]
[399560925,1766487469026,-500.0,0.00045479,120]
[399560926,1766487469066,-500.0,0.00045479,120]
[399560927,1766487469111,-557.62,0.00045479,120]
[399560928,1766487469157,-526.92,0.00045479,120]
[399560929,1766487469199,-500.0,0.00045479,120]
[399560930,1766487469243,-500.0,0.00045479,120]
[399560931,1766487469288,-500.0,0.00045479,120]
[399560932,1766487469334,-1297.54,0.00045479,120]
[399560933,1766487469379,-555.83,0.00045479,120]
[399560934,1766487469421,-500.0,0.00045479,120]
[399560935,1766487469465,-500.0,0.00045479,120]
[399560936,1766487469696,-500.0,0.00045479,120]
[399560937,1766487469741,-873.07,0.00045479,120]
[399560938,1766487469781,-604.78,0.00045479,120]
[399560939,1766487469822,-2639.11,0.00045479,120]
[399560940,1766487469862,-600.1,0.00045479,120]
[399560941,1766487469902,-500.0,0.00045479,120]
[399560942,1766487469941,-500.0,0.00045479,120]
[399560943,1766487469982,-500.0,0.00045479,120]
[399560944,1766487470023,-156.30069011,0.00045479,120]
[399560945,1766487470065,-622.5,0.00045479,120]
[399560946,1766487470109,-500.0,0.00045479,120]
[399560947,1766487470154,-500.0,0.00045479,120]
[399560948,1766487470198,-500.0,0.00045479,120]
[399560949,1766487470244,-567.72,0.00045479,120]
[399560950,1766487470289,-500.0,0.00045479,120]
[399560951,1766487470333,-2830.44,0.00045479,120]
[399560952,1766487470377,-592.25,0.00045479,120]
[399560953,1766487470422,-711.79,0.00045479,120]
[399560954,1766487470466,-500.0,0.00045479,120]
[399560955,1766487470509,-500.0,0.00045479,120]
[399560956,1766487470550,-619.91,0.00045479,120]
[399560957,1766487470589,-500.0,0.00045479,120]
[399560958,1766487470630,-865.33,0.00045479,120]
[399560959,1766487470671,-500.0,0.00045479,60]
[399560960,1766487470711,-580.69,0.00045479,120]
[399560961,1766487470754,-500.0,0.00045479,120]
[399560962,1766487470795,-500.0,0.00045479,120]
[399560963,1766487470838,-500.0,0.00045479,120]
[399560964,1766487470878,-205.20716943,0.00045479,120]
[399560965,1766487470919,-500.0,0.00045479,120]
[399560966,1766487470959,-865.61,0.00045479,120]
[399560967,1766487471001,-500.0,0.00045479,120]
[399560968,1766487471046,-1432.6,0.00045479,120]
[399560969,1766487471090,-500.0,0.00045479,120]
[399560970,1766487471132,-893.55,0.00045479,120]
[399560971,1766487471178,-500.0,0.00045479,120]
[399560972,1766487471227,-535.09297912,0.00045479,120]
[399560973,1766487471273,-1688.71,0.00045479,120]
[399560974,1766487471320,-905.29,0.00045479,120]
[399560975,1766487471366,-632.22,0.00045479,120]
[399560976,1766487471411,-500.0,0.00045479,120]
[399560977,1766487471461,-592.93,0.00045479,120]
[399560978,1766487471504,-519.34,0.00045479,120]
[399560979,1766487471547,-1835.93,0.00045479,120]
[399560980,1766487471587,-697.2,0.00045479,120]
[399560981,1766487471628,-878.66,0.00045479,120]
[399560982,1766487471668,-500.0,0.00045479,120]
[399560983,1766487471708,-913.04,0.00045479,120]
[399560984,1766487471747,-500.0,0.00045479,120]
[399560985,1766487471787,-500.0,0.00045479,120]
[399560986,1766487471832,-751.1,0.00045479,120]
[399560987,1766487471872,-500.0,0.00045479,120]
[399560988,1766487471914,-353.86134073,0.00045479,120]
[399560989,1766487471954,-1075.62,0.00045479,60]
[399560990,1766487471996,-500.0,0.00045479,120]
[399560991,1766487472040,-1328.41,0.00045479,120]
[399560992,1766487472085,-500.0,0.00045479,120]
[399560993,1766487472128,-500.0,0.00045479,120]
[399560994,1766487472171,-500.0,0.00045479,120]
[399560995,1766487472217,-500.0,0.00045479,120]
[399560996,1766487472263,-599.0,0.00045479,120]
[399560997,1766487472307,-886.86,0.00045479,120]
[399560998,1766487472351,-500.0,0.00045479,120]
[399560999,1766487472395,-500.0,0.00045479,120]
[399561000,1766487472438,-500.0,0.00045479,120]
[399561001,1766487472481,-500.0,0.00045479,120]
[399561002,1766487472526,-560.74,0.00045479,120]
[399561003,1766487472566,-500.0,0.00045479,120]
[399561004,1766487472606,-500.0,0.00045479,120]
[399561005,1766487472647,-1433.05,0.00045479,120]
[399561006,1766487472686,-544.33115254,0.00045479,120]
[399561007,1766487472725,-500.0,0.00045479,120]
[399561008,1766487472764,-500.0,0.00045479,120]
[399561009,1766487472803,-2265.89,0.00045479,120]
[399561010,1766487472843,-2082.47,0.00045479,120]
[399561011,1766487472885,-500.0,0.00045479,120]
[399561012,1766487472926,-1141.51,0.00045479,120]
[399561013,1766487472965,-1850.23,0.00045479,120]
[399561014,1766487473008,-500.0,0.00045479,120]
[399561015,1766487473050,-1211.32,0.00045479,120]
[399561016,1766487473092,-1291.8,0.00045479,120]
[399561017,1766487473134,-819.42,0.00045479,120]
[399561018,1766487473178,-2579.35,0.00045479,120]
[399561019,1766487473225,-500.0,0.00045479,120]
[399561020,1766487473283,-500.0,0.00045479,120]
[399561021,1766487473332,-500.0,0.00045479,120]
[399561022,1766487473377,-500.0,0.00045479,120]
[399561023,1766487473421,-1083.91,0.00045479,120]
[399561024,1766487473464,-500.0,0.00045479,120]
[399561025,1766487473507,-2453.97,0.00045479,120]
[399561026,1766487473551,-1697.27,0.00045479,120]
[399561027,1766487473595,-1279.54,0.00045479,120]
[399561028,1766487473638,-500.0,0.00045479,120]
[399561029,1766487473681,-500.0,0.00045479,120]
[399561030,1766487474063,-730.24,0.00045479,120]
[399561031,1766487474119,-500.0,0.00045479,120]
[399561032,1766487474174,-500.0,0.00045479,120]
[399561033,1766487474225,-500.0,0.00045479,120]
[399561034,1766487474281,-500.0,0.00045479,120]
[399561035,1766487474333,-500.0,0.00045479,120]
[399561036,1766487474381,-751.57,0.00045479,120]
[399561037,1766487474429,-500.0,0.00045479,120]
[399561038,1766487474478,-516.65,0.00045479,120]
[399561039,1766487474524,-1053.31,0.00045479,120]
[399561040,1766487474572,-500.0,0.00045479,120]
[399561041,1766487474617,-607.40292225,0.00045479,120]